fUSD/lending_fUSD_20250607
["ID","MTS","AMOUNT","RATE_DAILY","PERIOD"]
[364875013,1749283879757,-480.0,0.00028054,5]
[364875014,1749283879766,-867.98,0.00028054,5]
[364875015,1749283879777,-835.03,0.00028054,5]
[364875016,1749283879788,-1091.22,0.00028054,5]
[364875017,1749283879798,-788.44,0.00028054,5]
[364875018,1749283879808,-480.0,0.00028054,5]
[364875019,1749283879819,-480.0,0.00028054,5]
[364875020,1749283879829,-2181.17,0.00028054,5]
[364875021,1749283879839,-480.0,0.00028054,5]
[364875022,1749283879850,-675.89,0.00028054,5]
[364875023,1749283879860,-1257.45,0.00028054,5]
[364875024,1749283879870,-1342.98,0.00028054,5]
[364875025,1749283879880,-480.0,0.00028054,5]
[364875026,1749283879889,-480.0,0.00028054,5]
[364875027,1749283879899,-5948.08,0.00028054,5]
[364875028,1749283879908,-748.21,0.00028054,5]
[364875029,1749283879918,-480.0,0.00028054,5]
[364875030,1749283879927,-1325.93,0.00028054,5]
[364875031,1749283879937,-6018.65,0.00028054,5]
[364875032,1749283879948,-480.0,0.00028054,5]
[364875033,1749283879958,-329.02318311,0.00028054,5]
[364875034,1749283879968,-480.0,0.00028054,5]
[364875035,1749283879979,-480.0,0.00028054,5]
[364875036,1749283879988,-622.41,0.00028054,5]
[364875037,1749283879999,-1072.0,0.00028054,5]
[364875038,1749283880009,-1345.91,0.00028054,5]
[364875039,1749283880020,-480.0,0.00028054,5]
[364875040,1749283880030,-480.0,0.00028054,5]
[364875041,1749283880039,-965.47,0.00028054,5]
[364875042,1749283880053,-2147.53,0.00028054,2]
[364875043,1749283880064,-480.0,0.00028054,5]
[364875044,1749283880074,-480.0,0.00028054,5]
[364875045,1749283880085,-1671.91,0.00028054,5]
[364875046,1749283880095,-480.0,0.00028054,5]
[364875047,1749283880105,-2644.51,0.00028054,5]
[364875048,1749283880115,-2010.42,0.00028054,5]
[364875049,1749283880125,-3264.83,0.00028054,5]
[364875050,1749283880135,-477.59830839,0.00028054,5]
[364875051,1749283880145,-1546.17,0.00028054,5]
[364875052,1749283880156,-480.0,0.00028054,5]
[364875053,1749283880166,-2124.13,0.00028054,5]
[364875054,1749283880177,-480.0,0.00028054,5]
[364875055,1749283880187,-480.0,0.00028054,5]
[364875056,1749283880197,-3803.92,0.00028054,5]
[364875057,1749283880207,-3035.15,0.00028054,5]
[364875058,1749283880217,-6110.32,0.00028054,5]
[364875059,1749283880227,-1458.57,0.00028054,5]
[364875060,1749283880477,-882.95,0.00028054,5]
[364875061,1749283880487,-1003.3,0.00028054,5]
[364875062,1749283880498,-480.0,0.00028054,5]
[364875063,1749283880508,-1170.49,0.00028054,5]
[364875064,1749283880518,-3633.12,0.00028054,5]
[364875065,1749283880528,-1000.0,0.00028054,5]
[364875066,1749283880539,-1513.66,0.00028054,5]
[364875067,1749283880549,-480.0,0.00028054,5]
[364875068,1749283880560,-596.66,0.00028054,5]
[364875069,1749283880571,-1093.12,0.00028054,5]
[364875070,1749283880582,-814.18,0.00028054,5]
[364875071,1749283880592,-480.0,0.00028054,5]
[364875072,1749283880602,-2008.91,0.00028054,5]
[364875073,1749283880612,-495.78,0.00028054,5]
[364875074,1749283880623,-480.0,0.00028054,5]
[364875075,1749283880633,-480.0,0.00028054,5]
[364875076,1749283880643,-802.83,0.00028054,5]
[364875077,1749283880653,-2029.78,0.00028054,5]
[364875078,1749283880663,-2623.17,0.00028054,5]
[364875079,1749283880673,-5571.7,0.00028054,5]
[364875080,1749283880683,-480.0,0.00028054,5]
[364875081,1749283880692,-480.0,0.00028054,5]
[364875082,1749283880702,-749.45,0.00028054,5]
[364875083,1749283880712,-480.0,0.00028054,5]
[364875084,1749283880722,-2770.74,0.00028054,5]
[364875085,1749283880732,-855.47,0.00028054,5]
[364875086,1749283880742,-1941.16,0.00028054,5]
[364875087,1749283880752,-1529.93,0.00028054,5]
[364875088,1749283880762,-734.71,0.00028054,5]
[364875089,1749283880772,-4023.49,0.00028054,5]
[364875090,1749283880782,-480.0,0.00028054,5]
[364875091,1749283880791,-480.0,0.00028054,5]
[364875092,1749283880801,-961.409907,0.00028054,7]
[364875093,1749283880811,-480.0,0.00028054,5]
[364875094,1749283880821,-1675.33,0.00028054,5]
[364875095,1749283880832,-961.409907,0.00028054,7]
[364875096,1749283880842,-525.98,0.00028054,5]
[364875097,1749283880852,-1753.76,0.00028054,5]
[364875098,1749283880862,-480.0,0.00028054,5]
[364875099,1749283880874,-967.54,0.00028054,5]
[364875100,1749283880884,-480.0,0.00028054,5]
[364875101,1749283880894,-480.0,0.00028054,5]
[364875102,1749283880903,-151.0,0.00028054,7]
[364875103,1749283880913,-480.0,0.00028054,5]
[364875104,1749283880924,-480.0,0.00028054,5]
[364875105,1749283880934,-11876.34,0.00028054,5]
[364875106,1749283880943,-1453.1,0.00028054,5]
[364875107,1749283880953,-480.0,0.00028054,5]
[364875108,1749283880963,-1221.810892,0.00028054,7]
[364875109,1749283880972,-480.0,0.00028054,5]
[364875110,1749283880983,-683.94,0.00028054,5]
[364875111,1749283880994,-480.0,0.00028054,5]
[364875112,1749283881004,-480.0,0.00028054,5]
[364875113,1749283881014,-1122.69,0.00028054,5]
[364875114,1749283881024,-10865.99,0.00028054,5]
[364875115,1749283881035,-480.0,0.00028054,5]
[364875116,1749283881048,-480.0,0.00028054,5]
[364875117,1749283881059,-1221.810892,0.00028054,7]
[364875118,1749283881069,-871.56,0.00028054,5]
[364875119,1749283881079,-1581.96,0.00028054,5]
[364875120,1749283881088,-354.19033185,0.00028054,5]
[364875121,1749283881098,-480.0,0.00028054,5]
[364875122,1749283881108,-609.92144595,0.00028054,5]
[364875123,1749283881119,-480.0,0.00028054,5]
[364875124,1749283881130,-480.0,0.00028054,5]
[364875125,1749283881139,-813.01,0.00028054,5]
[364875126,1749283881149,-480.0,0.00028054,5]
[364875127,1749283881160,-480.0,0.00028054,5]
[364875128,1749283881169,-2227.22,0.00028054,5]
[364875129,1749283881179,-2000.65,0.00028054,5]
[364875130,1749283881189,-1731.59,0.00028054,5]
[364875131,1749283881198,-480.0,0.00028054,5]
[364875132,1749283881208,-2403.78,0.00028054,5]
[364875133,1749283881218,-480.0,0.00028054,5]
[364875134,1749283881228,-1327.04,0.00028054,5]
[364875135,1749283881238,-747.9,0.00028054,5]
[364875136,1749283881249,-480.0,0.00028054,5]
[364875137,1749283881259,-151.0,0.00028054,7]
[364875138,1749283881272,-575.71,0.00028054,5]
[364875139,1749283881283,-607.47305365,0.00028054,5]
[364875140,1749283881293,-1386.31,0.00028054,5]
[364875141,1749283881303,-480.0,0.00028054,5]
[364875142,1749283881313,-492.12,0.00028054,5]
[364875143,1749283881326,-480.0,0.00028054,5]
[364875144,1749283881336,-151.0,0.00028054,7]
[364875145,1749283881347,-487.31677098,0.00028054,5]
[364875146,1749283881358,-480.0,0.00028054,5]
[364875147,1749283881368,-10000.0,0.00028054,7]
[364875148,1749283881378,-4322.98,0.00028054,5]
[364875149,1749283881388,-494.08,0.00028054,5]
[364875150,1749283881398,-480.0,0.00028054,5]
[364875151,1749283881408,-518.65,0.00028054,5]
[364875152,1749283881418,-1470.829381,0.00028054,7]
[364875153,1749283881428,-1066.78,0.00028054,5]
[364875154,1749283881438,-10000.0,0.00028054,7]
[364875155,1749283881448,-480.0,0.00028054,5]
[364875156,1749283881457,-1078.23,0.00028054,5]
[364875157,1749283881467,-499.42,0.00028054,5]
[364875158,1749283881477,-1470.829381,0.00028054,7]
[364875159,1749283881487,-697.95,0.00028054,5]
[364875160,1749283881497,-10000.0,0.00028054,7]
[364875161,1749283881506,-152.130342,0.00028054,7]
[364875162,1749283881517,-957.28,0.00028054,5]
[364875163,1749283881527,-871.81,0.00028054,5]
[364875164,1749283881537,-1569.25,0.00028054,5]
[364875165,1749283881547,-480.0,0.00028054,5]
[364875166,1749283881556,-480.0,0.00028054,5]
[364875167,1749283881567,-757.09,0.00028054,5]
[364875168,1749283881577,-487.69146044,0.00028054,5]
[364875169,1749283881587,-151.0,0.00028054,7]
[364875170,1749283881598,-3593.96,0.00028054,5]
[364875171,1749283881608,-869.93,0.00028054,5]
[364875172,1749283881619,-607.22,0.00028054,5]
[364875173,1749283881630,-1281.37,0.00028054,5]
[364875174,1749283881639,-1143.16,0.00028054,5]
[364875175,1749283881649,-151.0,0.00028054,7]
[364875176,1749283881658,-480.0,0.00028054,5]
[364875177,1749283881668,-630.74,0.00028054,5]
[364875178,1749283881678,-689.06,0.00028054,5]
[364875179,1749283881689,-1387.38,0.00028054,5]
[364875180,1749283881699,-480.0,0.00028054,5]
[364875181,1749283881709,-480.0,0.00028054,5]
[364875182,1749283881719,-2996.31,0.00028054,5]
[364875183,1749283881728,-498.93761496,0.00028054,5]
[364875184,1749283881738,-480.0,0.00028054,5]
[364875185,1749283881749,-579.382257,0.00028054,7]
[364875186,1749283881759,-161.295383,0.00028054,7]
[364875187,1749283881768,-579.382257,0.00028054,7]
[364875188,1749283881779,-161.295383,0.00028054,7]
[364875189,1749283881789,-151.0,0.00028054,7]
[364875190,1749283881799,-151.0,0.00028054,7]
[364875191,1749283881808,-151.0,0.00028054,7]
[364875192,1749283881818,-1000.0,0.00028077,2]
[364875193,1749283881827,-165.36091429,0.00028082,30]
[364875194,1749283881837,-165.36091429,0.00028082,30]
[364875195,1749283881847,-520.63509267,0.00028098,2]
[364875196,1749283881856,-6449.08,0.000281,2]
[364875197,1749283881866,-672.26,0.000281,2]
[364875198,1749283881875,-512.391467,0.0002811,30]
[364875199,1749283881884,-151.0,0.00028115,23]
[364875200,1749283881894,-150.0,0.00028115,2]
[364875201,1749283881903,-794.82,0.00028118,2]
[364875202,1749283881913,-150.0,0.00028118,2]
[364875203,1749283881922,-15410.11980894,0.00028119,2]
[364875204,1749283881931,-1021.3375797,0.00028121,5]
[364875205,1749283881943,-155.19,0.00028154,2]
[364875206,1749283881952,-500.0,0.00028164,7]
[364875207,1749283881961,-150.0,0.00028181,2]
[364875208,1749283881971,-672.26,0.000282,2]
[364875209,1749283881980,-151.0,0.000282,7]
[364875210,1749283881990,-151.0,0.000282,7]
[364875211,1749283882002,-768.0,0.000282,2]
[364875212,1749283882012,-237.0,0.000282,2]
[364875213,1749283882022,-376.0,0.000282,2]
[364875214,1749283882031,-1000.0,0.00028214,2]
[364875215,1749283882042,-2212.47,0.00028218,5]
[364875216,1749283882051,-794.82,0.00028218,2]
[364875217,1749283882061,-3176.64,0.00028218,5]
[364875218,1749283882071,-3176.64,0.00028218,5]
[364875219,1749283882080,-151.0,0.00028219,7]
[364875220,1749283882090,-480.0,0.00028219,5]
[364875221,1749283882099,-631.92,0.00028219,5]
[364875222,1749283882108,-480.0,0.00028219,5]
[364875223,1749283882118,-485.37424008,0.00028219,5]
[364875224,1749283882127,-545.54771219,0.00028219,5]
[364875225,1749283882137,-480.0,0.00028219,5]
[364875226,1749283882146,-480.0,0.00028219,5]
[364875227,1749283882156,-480.0,0.00028219,5]
[364875228,1749283882165,-320.76445013,0.00028219,5]
[364875229,1749283882175,-642.32,0.00028219,5]
[364875230,1749283882185,-1416.8,0.00028219,5]
[364875231,1749283882194,-480.0,0.00028219,5]
[364875232,1749283882204,-480.0,0.00028219,5]
[364875233,1749283882213,-480.0,0.00028219,5]
[364875234,1749283882223,-480.0,0.00028219,5]
[364875235,1749283882232,-722.44,0.00028219,5]
[364875236,1749283882242,-658.72,0.00028219,5]
[364875237,1749283882251,-480.0,0.00028219,5]
[364875238,1749283882261,-480.0,0.00028219,5]
[364875239,1749283882271,-480.0,0.00028219,5]
[364875240,1749283882280,-480.0,0.00028219,5]
[364875241,1749283882290,-514.07,0.00028219,5]
[364875242,1749283882300,-480.0,0.00028219,5]
[364875243,1749283882309,-480.0,0.00028219,5]
[364875244,1749283882321,-480.0,0.00028219,5]
[364875245,1749283882338,-504.15702106,0.00028219,5]
[364875246,1749283882348,-1423.16,0.00028219,5]
[364875247,1749283882357,-480.0,0.00028219,5]
[364875248,1749283882368,-480.0,0.00028219,5]
[364875249,1749283882378,-1954.69,0.00028219,5]
[364875250,1749283882389,-480.0,0.00028219,5]
[364875251,1749283882399,-624.11,0.00028219,5]
[364875252,1749283882409,-480.0,0.00028219,5]
[364875253,1749283882419,-480.0,0.00028219,5]
[364875254,1749283882428,-480.0,0.00028219,5]
[364875255,1749283882438,-480.0,0.00028219,5]
[364875256,1749283882447,-480.0,0.00028219,5]
[364875257,1749283882456,-480.0,0.00028219,5]
[364875258,1749283882467,-618.47,0.00028219,5]
[364875259,1749283882476,-513.10204423,0.00028219,5]
[364875260,1749283882486,-1137.84,0.00028219,5]
[364875261,1749283882496,-484.92823403,0.00028219,5]
[364875262,1749283882506,-1163.74,0.00028219,5]
[364875263,1749283882515,-480.0,0.00028219,5]
[364875264,1749283882524,-480.0,0.00028219,5]
[364875265,1749283882534,-480.0,0.00028219,5]
[364875266,1749283882544,-480.0,0.00028219,5]
[364875267,1749283882553,-807.84,0.00028219,5]
[364875268,1749283882563,-1323.94,0.00028219,5]
[364875269,1749283882574,-202.374025,0.00028219,7]
[364875270,1749283882584,-486.54265809,0.00028219,5]
[364875271,1749283882595,-480.0,0.00028219,5]
[364875272,1749283882605,-511.17150852,0.00028219,5]
[364875273,1749283882616,-480.0,0.00028219,5]
[364875274,1749283882626,-202.374025,0.00028219,7]
[364875275,1749283882635,-480.0,0.00028219,5]
[364875276,1749283882646,-196.712187,0.00028219,7]
[364875277,1749283882655,-722.49,0.00028219,5]
[364875278,1749283882665,-196.712187,0.00028219,7]
[364875279,1749283882676,-489.14961388,0.00028219,5]
[364875280,1749283882686,-480.0,0.00028219,5]
[364875281,1749283882696,-151.0,0.00028219,7]
[364875282,1749283882706,-480.0,0.00028219,5]
[364875283,1749283882715,-480.0,0.00028219,5]
[364875284,1749283882726,-1046.98,0.00028219,5]
[364875285,1749283882735,-480.0,0.00028219,5]
[364875286,1749283882745,-151.0,0.00028219,7]
[364875287,1749283882755,-512.6480785,0.00028219,5]
[364875288,1749283882765,-151.0,0.00028219,7]
[364875289,1749283882775,-713.0,0.00028219,5]
[364875290,1749283882785,-480.0,0.00028219,5]
[364875291,1749283882794,-548.11,0.00028219,5]
[364875292,1749283882805,-335.172164,0.00028219,5]
[364875293,1749283882814,-583.42703624,0.00028219,5]
[364875294,1749283882824,-882.53,0.00028219,5]
[364875295,1749283882833,-480.0,0.00028219,5]
[364875296,1749283882843,-480.0,0.00028219,5]
[364875297,1749283882852,-480.0,0.00028219,5]
[364875298,1749283882862,-150.35042316,0.00028219,5]
[364875299,1749283882872,-736.64,0.00028219,5]
[364875300,1749283882882,-480.0,0.00028219,5]
[364875301,1749283882894,-480.0,0.00028219,5]
[364875302,1749283882904,-480.0,0.00028219,5]
[364875303,1749283882915,-658.07,0.00028219,5]
[364875304,1749283882924,-480.0,0.00028219,5]
[364875305,1749283882934,-151.0,0.00028219,7]
[364875306,1749283882943,-676.89,0.00028219,5]
[364875307,1749283882954,-480.0,0.00028219,5]
[364875308,1749283882964,-151.0,0.00028219,7]
[364875309,1749283882974,-611.81,0.00028219,5]
[364875310,1749283882983,-903.48,0.00028219,5]
[364875311,1749283882994,-545.14,0.00028219,5]
[364875312,1749283883004,-1030.91,0.00028219,5]
[364875313,1749283883014,-151.0,0.00028219,7]
[364875314,1749283883025,-151.0,0.00028219,7]
[364875315,1749283883035,-480.0,0.00028219,5]
[364875316,1749283883045,-151.0,0.00028219,7]
[364875317,1749283883055,-480.0,0.00028219,5]
[364875318,1749283883064,-151.0,0.00028219,7]
[364875319,1749283883074,-480.0,0.00028219,5]
[364875320,1749283883084,-1787.253615,0.00028219,5]
[364875321,1749283883093,-652.14,0.00028219,5]
[364875322,1749283883103,-480.0,0.00028219,5]
[364875323,1749283883114,-480.0,0.00028219,5]
[364875324,1749283883124,-1026.76,0.00028219,5]
[364875325,1749283883134,-513.26024752,0.00028219,5]
[364875326,1749283883143,-573.4,0.00028219,5]
[364875327,1749283883153,-873.46,0.00028219,5]
[364875328,1749283883163,-480.0,0.00028219,5]
[364875329,1749283883173,-480.0,0.00028219,5]
[364875330,1749283883182,-787.2,0.00028219,5]
[364875331,1749283883191,-1212.38,0.00028219,5]
[364875332,1749283883201,-2102.121321,0.00028219,5]
[364875333,1749283883210,-480.0,0.00028219,5]
[364875334,1749283883220,-480.0,0.00028219,5]
[364875335,1749283883230,-496.05422847,0.00028219,5]
[364875336,1749283883239,-480.0,0.00028219,5]
[364875337,1749283883250,-480.0,0.00028219,5]
[364875338,1749283883260,-480.0,0.00028219,5]
[364875339,1749283883270,-481.70728185,0.00028219,5]
[364875340,1749283883279,-480.0,0.00028219,5]
[364875341,1749283883289,-1174.57,0.00028219,5]
[364875342,1749283883299,-480.0,0.00028219,5]
[364875343,1749283883308,-850.33,0.00028219,5]
[364875344,1749283883317,-554.27,0.00028219,5]
[364875345,1749283883330,-480.0,0.00028219,5]
[364875346,1749283883340,-493.15586089,0.00028219,5]
[364875347,1749283883350,-480.0,0.00028219,5]
[364875348,1749283883360,-737.61,0.00028219,5]
[364875349,1749283883371,-494.24,0.00028219,5]
[364875350,1749283883381,-634.26,0.00028219,5]
[364875351,1749283883391,-835.68,0.00028219,5]
[364875352,1749283883401,-768.49,0.00028219,5]
[364875353,1749283883412,-480.0,0.00028219,5]
[364875354,1749283883423,-480.0,0.00028219,5]
[364875355,1749283883432,-528.15,0.00028219,5]
[364875356,1749283883442,-480.0,0.00028219,5]
[364875357,1749283883452,-480.0,0.00028219,5]
[364875358,1749283883462,-1115.25,0.00028219,5]
[364875359,1749283883472,-480.0,0.00028219,5]
[364875360,1749283883671,-480.0,0.00028219,5]
[364875361,1749283883683,-2016.63,0.00028219,5]
[364875362,1749283883694,-173.38019525,0.00028219,5]
[364875363,1749283883706,-166.68531887,0.00028219,5]
[364875364,1749283883716,-485.39,0.00028219,5]
[364875365,1749283883726,-480.0,0.00028219,5]
[364875366,1749283883736,-480.0,0.00028219,5]
[364875367,1749283883746,-480.0,0.00028219,5]
[364875368,1749283883756,-480.0,0.00028219,5]
[364875369,1749283883765,-984.78,0.00028219,5]
[364875370,1749283883775,-480.0,0.00028219,5]
[364875371,1749283883785,-480.0,0.00028219,5]
[364875372,1749283883795,-480.0,0.00028219,5]
[364875373,1749283883805,-480.0,0.00028219,5]
[364875374,1749283883815,-480.0,0.00028219,5]
[364875375,1749283883825,-956.19,0.00028219,5]
[364875376,1749283883834,-539.43471147,0.00028219,5]
[364875377,1749283883844,-601.8,0.00028219,5]
[364875378,1749283883854,-798.33,0.00028219,5]
[364875379,1749283883863,-658.43,0.00028219,5]
[364875380,1749283883873,-984.27,0.00028219,5]
[364875381,1749283883883,-853.62,0.00028219,5]
[364875382,1749283883892,-480.0,0.00028219,5]
[364875383,1749283883902,-165.03940111,0.00028219,5]
[364875384,1749283883912,-480.0,0.00028219,5]
[364875385,1749283883922,-480.0,0.00028219,5]
[364875386,1749283883932,-1719.89,0.00028219,5]
[364875387,1749283883942,-879.54,0.00028219,5]
[364875388,1749283883951,-990.87,0.00028219,5]
[364875389,1749283883960,-769.25,0.00028219,5]
[364875390,1749283883970,-1000.0,0.00028219,5]
[364875391,1749283883979,-480.0,0.00028219,5]
[364875392,1749283883990,-619.63,0.00028219,5]
[364875393,1749283883999,-405.381189,0.00028219,5]
[364875394,1749283884009,-510.25373153,0.00028219,5]
[364875395,1749283884019,-964.13,0.00028219,5]
[364875396,1749283884029,-480.0,0.00028219,5]
[364875397,1749283884039,-480.0,0.00028219,5]
[364875398,1749283884050,-614.65,0.00028219,5]
[364875399,1749283884059,-480.0,0.00028219,5]
[364875400,1749283884069,-480.0,0.00028219,5]
[364875401,1749283884078,-620.08,0.00028219,5]
[364875402,1749283884088,-959.52,0.00028219,5]
[364875403,1749283884098,-481.61,0.00028219,5]
[364875404,1749283884108,-607.29,0.00028219,5]
[364875405,1749283884118,-1150.03,0.00028219,5]
[364875406,1749283884128,-226.37645751,0.00028219,5]
[364875407,1749283884138,-647.25,0.00028219,5]
[364875408,1749283884147,-1086.55,0.00028219,5]
[364875409,1749283884157,-155.562117,0.00028219,7]
[364875410,1749283884167,-176.36378479,0.00028219,5]
[364875411,1749283884177,-155.562117,0.00028219,7]
[364875412,1749283884187,-480.0,0.00028219,5]
[364875413,1749283884197,-1473.87,0.00028219,5]
[364875414,1749283884206,-480.0,0.00028219,5]
[364875415,1749283884216,-480.0,0.00028219,5]
[364875416,1749283884227,-7690.81,0.00028219,5]
[364875417,1749283884237,-480.0,0.00028219,5]
[364875418,1749283884246,-480.0,0.00028219,5]
[364875419,1749283884256,-480.0,0.00028219,5]
[364875420,1749283884265,-480.0,0.00028219,5]
[364875421,1749283884275,-1206.45,0.00028219,5]
[364875422,1749283884285,-480.0,0.00028219,5]
[364875423,1749283884294,-513.61979939,0.00028219,5]
[364875424,1749283884304,-480.0,0.00028219,5]
[364875425,1749283884314,-480.0,0.00028219,5]
[364875426,1749283884326,-594.14,0.00028219,5]
[364875427,1749283884336,-480.0,0.00028219,5]
[364875428,1749283884346,-656.54,0.00028219,5]
[364875429,1749283884355,-665.13,0.00028219,5]
[364875430,1749283884367,-509.24,0.00028219,5]
[364875431,1749283884378,-480.0,0.00028219,5]
[364875432,1749283884388,-544.49828948,0.00028219,5]
[364875433,1749283884399,-867.98,0.00028219,5]
[364875434,1749283884409,-835.03,0.00028219,5]
[364875435,1749283884419,-1091.22,0.00028219,5]
[364875436,1749283884429,-788.44,0.00028219,5]
[364875437,1749283884438,-480.0,0.00028219,5]
[364875438,1749283884448,-480.0,0.00028219,5]
[364875439,1749283884458,-2181.17,0.00028219,5]
[364875440,1749283884468,-189.57425482,0.00028219,5]
[364875441,1749283884478,-675.89,0.00028219,5]
[364875442,1749283884488,-1257.45,0.00028219,5]
[364875443,1749283884498,-1342.98,0.00028219,5]
[364875444,1749283884508,-503.78442438,0.00028219,5]
[364875445,1749283884518,-443.1717612,0.00028219,5]
[364875446,1749283884528,-5948.08,0.00028219,5]
[364875447,1749283884538,-748.21,0.00028219,5]
[364875448,1749283884548,-480.0,0.00028219,5]
[364875449,1749283884558,-1325.93,0.00028219,5]
[364875450,1749283884568,-6018.65,0.00028219,5]
[364875451,1749283884578,-480.0,0.00028219,5]
[364875452,1749283884588,-480.0,0.00028219,5]
[364875453,1749283884598,-480.0,0.00028219,5]
[364875454,1749283884608,-622.41,0.00028219,5]
[364875455,1749283884619,-1072.0,0.00028219,5]
[364875456,1749283884630,-1345.91,0.00028219,5]
[364875457,1749283884640,-480.0,0.00028219,5]
[364875458,1749283884650,-480.0,0.00028219,5]
[364875459,1749283884660,-965.47,0.00028219,5]
[364875460,1749283884670,-2147.53,0.00028219,2]
[364875461,1749283884680,-480.0,0.00028219,5]
[364875462,1749283884690,-480.0,0.00028219,5]
[364875463,1749283884700,-1671.91,0.00028219,5]
[364875464,1749283884709,-480.0,0.00028219,5]
[364875465,1749283884720,-2644.51,0.00028219,5]
[364875466,1749283884730,-2010.42,0.00028219,5]
[364875467,1749283884740,-3264.83,0.00028219,5]
[364875468,1749283884750,-1546.17,0.00028219,5]
[364875469,1749283884760,-480.0,0.00028219,5]
[364875470,1749283884770,-2124.13,0.00028219,5]
[364875471,1749283884780,-480.0,0.00028219,5]
[364875472,1749283884790,-480.0,0.00028219,5]
[364875473,1749283884799,-3035.15,0.00028219,5]
[364875474,1749283884809,-6110.32,0.00028219,5]
[364875475,1749283884819,-3803.92,0.00028219,5]
[364875476,1749283884830,-1458.57,0.00028219,5]
[364875477,1749283884840,-882.95,0.00028219,5]
[364875478,1749283884850,-1003.3,0.00028219,5]
[364875479,1749283884860,-480.0,0.00028219,5]
[364875480,1749283884871,-1170.49,0.00028219,5]
[364875481,1749283884881,-3633.12,0.00028219,5]
[364875482,1749283884890,-1000.0,0.00028219,5]
[364875483,1749283884900,-1513.66,0.00028219,5]
[364875484,1749283884909,-499.59754494,0.00028219,5]
[364875485,1749283884919,-596.66,0.00028219,5]
[364875486,1749283884929,-1093.12,0.00028219,5]
[364875487,1749283884939,-814.18,0.00028219,5]
[364875488,1749283884948,-499.13438102,0.00028219,5]
[364875489,1749283884958,-2008.91,0.00028219,5]
[364875490,1749283884967,-495.78,0.00028219,5]
[364875491,1749283884977,-480.0,0.00028219,5]
[364875492,1749283884987,-480.0,0.00028219,5]
[364875493,1749283884997,-802.83,0.00028219,5]
[364875494,1749283885006,-2029.78,0.00028219,5]
[364875495,1749283885016,-2623.17,0.00028219,5]
[364875496,1749283885025,-5571.7,0.00028219,5]
[364875497,1749283885035,-480.0,0.00028219,5]
[364875498,1749283885048,-480.0,0.00028219,5]
[364875499,1749283885058,-749.45,0.00028219,5]
[364875500,1749283885068,-151.0,0.00028219,7]
[364875501,1749283885077,-569.97071989,0.00028219,5]
[364875502,1749283885087,-2770.74,0.00028219,5]
[364875503,1749283885097,-855.47,0.00028219,5]
[364875504,1749283885106,-1941.16,0.00028219,5]
[364875505,1749283885116,-1529.93,0.00028219,5]
[364875506,1749283885127,-734.71,0.00028219,5]
[364875507,1749283885137,-4023.49,0.00028219,5]
[364875508,1749283885146,-480.0,0.00028219,5]
[364875509,1749283885156,-480.0,0.00028219,5]
[364875510,1749283885166,-486.60473685,0.00028219,5]
[364875511,1749283885177,-1675.33,0.00028219,5]
[364875512,1749283885186,-525.98,0.00028219,5]